[Event "DVM U10 2019"]
[Site "Magedburg"]
[Date "2019.12.28"]
[Round "4"]
[White "Ebers, Frederik"]
[Black "Braun, Julian"]
[Result "0-1"]
[ECO "D02"]
[WhiteElo "1125"]
[BlackElo "1441"]
[Annotator "NA"]
[PlyCount "58"]
[EventDate "2019.12.27"]
[EventType "team-tourn"]
[EventRounds "7"]
[EventCountry "GER"]
[SourceTitle "playchess.com"]
[Source "ChessBase"]
[SourceQuality "1"]
[TimeControl "3300+5"]

1. d4 {[%emt 0:00:00]} d5 {[%emt 0:00:02]} 2. Nf3 {[%emt 0:00:02]} Nf6 {[%emt 0:00:06]} 3. Bf4 {[%emt 0:00:09]} a6 {[%emt 0:00:14]} 4. e3 {[%emt 0:00:19]} Bf5 {[%emt 0:00:09]} 5. Bd3 {[%emt 0:00:11]} Bxd3 {[%emt 0:00:08]} 6. Qxd3 {[%emt 0:00:08]} e6 {[%emt 0:00:04]} 7. Nbd2 {[%emt 0:00:20]} Nbd7 {[%emt 0:00:18]} 8. c3 {[%emt 0:00:51]} Be7 {[%emt 0:00:17]} 9. Qc2 {[%emt 0:00:29]} O-O {[%emt 0:00:11]} 10. O-O-O {[%emt 0:00:09]} b5 {[%emt 0:00:23]} 11. h4 {[%emt 0:00:30]} a5 {[%emt 0:00:27]} 12. Bg5 {[%emt 0:00:17]} a4 {[%emt 0:00:25]} 13. Bxf6 {[%emt 0:00:08]} Bxf6 {[%emt 0:00:16]} 14. Ng5 {[%emt 0:00:20]} g6 {[%emt 0:01:39]} 15. f4 {[%emt 0:00:46]} h6 {[%emt 0:03:26]} 16. Ngf3 {[%emt 0:00:22]} h5 {[%emt 0:00:25]} 17. Ne5 {[%emt 0:01:02]} Nxe5 {[%emt 0:01:31]} 18. dxe5 {[%emt 0:00:07]} Bxh4 {[%emt 0:00:20]} 19. Nf3 {[%emt 0:00:33]} Be7 {[%emt 0:00:25]} 20. Rdg1 {[%emt 0:00:16]} a3 {[%emt 0:01:19]} 21. Kd2 {[%emt 0:01:22]} b4 {[%emt 0:02:16]} 22. Ng5 {[%emt 0:01:38]} bxc3+ {[%emt 0:01:12]} 23. bxc3 {[%emt 0:00:09]} Rb8 {[%emt 0:01:18]} 24. Rb1 {[%emt 0:00:34]} Bxg5 {[%emt 0:01:03]} 25. fxg5 {[%emt 0:00:43]} Qxg5 {[%emt 0:00:21]} 26. Rb3 {[%emt 0:01:12]} Rxb3 {[%emt 0:00:38]} 27. Qxb3 {[%emt 0:00:44]} Qxg2+ {[%emt 0:00:14]} 28. Kd3 {[%emt 0:00:21]} Qxh1 {[%emt 0:01:01]} 29. Qxa3 {[%emt 0:00:09]} Qd1# {[%emt 0:00:23] normal} 0-1

[Event "DVM U10 2019"]
[Site "Magedburg"]
[Date "2019.12.28"]
[Round "4"]
[White "Schott, Moritz"]
[Black "Schmidt, Anton"]
[Result "0-1"]
[ECO "C47"]
[WhiteElo "1090"]
[BlackElo "1090"]
[Annotator "NA"]
[PlyCount "142"]
[EventDate "2019.12.27"]
[EventType "team-tourn"]
[EventRounds "7"]
[EventCountry "GER"]
[SourceTitle "playchess.com"]
[Source "ChessBase"]
[SourceQuality "1"]
[TimeControl "3300+5"]

1. e4 {[%emt 0:00:00]} e5 {[%emt 0:00:01]} 2. Nf3 {[%emt 0:00:01]} Nc6 {[%emt 0:00:07]} 3. Nc3 {[%emt 0:00:08]} Nf6 {[%emt 0:00:09]} 4. d4 {[%emt 0:00:10]} d6 5. dxe5 dxe5 {[%emt 0:01:14]} 6. Qxd8+ {[%emt 0:00:18]} Kxd8 {[%emt 0:00:09]} 7. Bg5 {[%emt 0:00:17]} Be7 {[%emt 0:00:23]} 8. O-O-O+ {[%emt 0:00:17]} Ke8 {[%emt 0:00:19]} 9. Bb5 {[%emt 0:00:17]} Bd7 {[%emt 0:00:31]} 10. Bxc6 {[%emt 0:00:26]} Bxc6 {[%emt 0:00:20]} 11. Nxe5 {[%emt 0:00:11]} Bxe4 {[%emt 0:00:30]} 12. Rhe1 {[%emt 0:00:29]} Bxg2 {[%emt 0:00:33]} 13. Ng4 {[%emt 0:00:39]} Kf8 {[%emt 0:01:26]} 14. Rg1 {[%emt 0:01:50]} Nxg4 {[%emt 0:01:02]} 15. Bxe7+ {[%emt 0:00:13]} Kxe7 {[%emt 0:00:30]} 16. Rxg2 {[%emt 0:00:19]} Nf6 {[%emt 0:00:16]} 17. Rxg7 {[%emt 0:00:38]} h5 {[%emt 0:01:04]} 18. Rgg1 {[%emt 0:01:10]} Ng4 {[%emt 0:00:15]} 19. Rge1+ {[%emt 0:00:48]} Kf8 {[%emt 0:00:26]} 20. Rd2 {[%emt 0:00:40]} Nxh2 {[%emt 0:00:38]} 21. Rd3 {[%emt 0:00:42]} Ng4 {[%emt 0:00:26]} 22. Ne4 {[%emt 0:00:23]} Re8 {[%emt 0:01:05]} 23. f3 {[%emt 0:00:37]} Ne5 {[%emt 0:02:34]} 24. Rde3 {[%emt 0:00:45]} Re7 {[%emt 0:01:47]} 25. Nc5 Nc6 {[%emt 0:01:22]} 26. Rxe7 {[%emt 0:01:31]} Nxe7 {[%emt 0:00:09]} 27. Nd7+ {[%emt 0:00:15]} Ke8 {[%emt 0:00:32]} 28. Nf6+ {[%emt 0:01:49]} Kd8 {[%emt 0:00:14]} 29. Rd1+ {[%emt 0:00:25]} Kc8 {[%emt 0:00:11]} 30. Rd7 {[%emt 0:00:39]} Rh6 {[%emt 0:01:42]} 31. Rxe7 {[%emt 0:00:31]} Rxf6 {[%emt 0:00:12]} 32. Re3 {[%emt 0:00:25]} Rf4 {[%emt 0:00:29]} 33. Rd3 {[%emt 0:00:22]} h4 {[%emt 0:00:22]} 34. Re3 {[%emt 0:00:58]} h3 {[%emt 0:00:18]} 35. Re8+ {[%emt 0:00:07]} Kd7 {[%emt 0:00:16]} 36. Rh8 {[%emt 0:00:04]} Rxf3 {[%emt 0:00:22]} 37. Kd2 {[%emt 0:00:15]} Rg3 {[%emt 0:00:39]} 38. Ke2 {[%emt 0:00:15]} Rg2+ {[%emt 0:00:34]} 39. Kf1 {[%emt 0:00:20]} Rxc2 {[%emt 0:00:19]} 40. Rxh3 {[%emt 0:00:13]} Rxb2 {[%emt 0:00:11]} 41. a3 {[%emt 0:00:10]} Rb1+ {[%emt 0:00:19]} 42. Ke2 {[%emt 0:00:15]} Rb2+ {[%emt 0:00:25]} 43. Kd1 {[%emt 0:00:22]} Rb6 {[%emt 0:00:32]} 44. Kc2 {[%emt 0:00:15]} Rc6+ {[%emt 0:00:11]} 45. Kb3 {[%emt 0:00:16]} Rb6+ {[%emt 0:00:16]} 46. Kc4 {[%emt 0:00:19]} Rc6+ {[%emt 0:00:18]} 47. Kb3 {[%emt 0:00:12]} f5 {[%emt 0:00:34]} 48. Rd3+ {[%emt 0:00:15]} Rd6 {[%emt 0:00:19]} 49. Rf3 {[%emt 0:00:10]} Rf6 {[%emt 0:00:30]} 50. Rd3+ {[%emt 0:00:15]} Kc8 {[%emt 0:00:09]} 51. Kc3 {[%emt 0:00:26]} b6 {[%emt 0:00:13]} 52. Kd4 {[%emt 0:00:17]} Rd6+ {[%emt 0:00:14]} 53. Kc3 {[%emt 0:00:13]} Rxd3+ {[%emt 0:00:15]} 54. Kxd3 {[%emt 0:00:07]} Kd7 {[%emt 0:00:11]} 55. Kd4 {[%emt 0:00:11]} Kd6 {[%emt 0:00:16]} 56. Ke3 {[%emt 0:00:18]} Ke5 {[%emt 0:00:12]} 57. a4 {[%emt 0:00:15]} c5 {[%emt 0:00:17]} 58. Kd3 {[%emt 0:00:13]} f4 59. Ke2 {[%emt 0:00:09]} Ke4 {[%emt 0:00:27]} 60. Kf2 {[%emt 0:00:12]} c4 {[%emt 0:00:11]} 61. Ke2 {[%emt 0:00:11]} f3+ {[%emt 0:00:46]} 62. Kf2 {[%emt 0:00:12]} c3 {[%emt 0:00:08]} 63. a5 {[%emt 0:00:10]} bxa5 {[%emt 0:00:07]} 64. Ke1 {[%emt 0:00:06]} Ke3 {[%emt 0:00:10]} 65. Kd1 {[%emt 0:00:15]} f2 {[%emt 0:00:11]} 66. Kc2 {[%emt 0:00:14]} f1=Q {[%emt 0:00:22]} 67. Kb3 {[%emt 0:00:09]} Qb1+ {[%emt 0:00:16]} 68. Kxc3 {[%emt 0:00:14]} Qd3+ {[%emt 0:00:13]} 69. Kb2 {[%emt 0:00:11]} Kd2 {[%emt 0:00:25]} 70. Ka2 {[%emt 0:00:09]} Kc2 {[%emt 0:00:16]} 71. Ka1 {[%emt 0:00:10]} Qa3# {normal} 0-1

[Event "DVM U10 2019"]
[Site "Magedburg"]
[Date "2019.12.28"]
[Round "4"]
[White "Dell, Philip"]
[Black "Ruddat, Jarne"]
[Result "0-1"]
[ECO "B34"]
[WhiteElo "860"]
[BlackElo "1458"]
[Annotator "NA"]
[PlyCount "104"]
[EventDate "2019.12.27"]
[EventType "team-tourn"]
[EventRounds "7"]
[EventCountry "GER"]
[SourceTitle "playchess.com"]
[Source "ChessBase"]
[SourceQuality "1"]
[TimeControl "3300+5"]

1. e4 {[%emt 0:00:00]} c5 {[%emt 0:00:00]} 2. Nf3 {[%emt 0:00:02]} g6 {[%emt 0:00:03]} 3. d4 {[%emt 0:00:07]} cxd4 {[%emt 0:00:04]} 4. Nxd4 {[%emt 0:00:09]} Nc6 {[%emt 0:00:04]} 5. Nc3 {[%emt 0:00:17]} Bg7 {[%emt 0:00:04]} 6. Be3 {[%emt 0:00:09]} Nf6 {[%emt 0:00:13]} 7. Nxc6 {[%emt 0:00:11]} bxc6 {[%emt 0:00:05]} 8. e5 {[%emt 0:00:10]} Ng8 {[%emt 0:01:11]} 9. f4 {[%emt 0:00:08]} d6 {[%emt 0:00:20]} 10. exd6 {[%emt 0:00:09]} Qxd6 {[%emt 0:00:56]} 11. Be2 {[%emt 0:03:09]} Nf6 {[%emt 0:00:10]} 12. Bf3 {[%emt 0:00:57]} Qxd1+ {[%emt 0:02:17]} 13. Rxd1 {[%emt 0:00:06]} Bd7 {[%emt 0:00:03]} 14. Nb5 {[%emt 0:00:42]} Rc8 {[%emt 0:01:38]} 15. Nxa7 {[%emt 0:00:14]} Rc7 {[%emt 0:00:06]} 16. O-O {[%emt 0:00:41]} c5 {[%emt 0:00:22]} 17. Rxd7 {[%emt 0:03:00]} Nxd7 {[%emt 0:00:12]} 18. Nb5 {[%emt 0:00:09]} Rc8 {[%emt 0:00:41]} 19. Re1 {[%emt 0:01:22]} O-O {[%emt 0:00:14]} 20. Rd1 {[%emt 0:00:38]} Nf6 {[%emt 0:00:36]} 21. Na7 {[%emt 0:01:18]} Rcd8 {[%emt 0:00:13]} 22. Rxd8 {[%emt 0:02:38]} Rxd8 {[%emt 0:00:06]} 23. Nc6 {[%emt 0:00:12]} Rd7 {[%emt 0:02:32]} 24. Bxc5 {[%emt 0:00:20]} Bf8 {[%emt 0:00:39]} 25. a4 {[%emt 0:00:22]} Nd5 {[%emt 0:00:40]} 26. Bxd5 {[%emt 0:00:39]} Rxd5 {[%emt 0:00:03]} 27. Bxe7 {[%emt 0:00:13]} Rd1+ {[%emt 0:00:07]} 28. Kf2 {[%emt 0:00:13]} Bxe7 {[%emt 0:00:02]} 29. Nxe7+ {[%emt 0:02:40]} Kf8 {[%emt 0:00:05]} 30. Nc6 {[%emt 0:00:20]} Ra1 {[%emt 0:00:04]} 31. a5 {[%emt 0:00:11]} Ke8 {[%emt 0:00:03]} 32. b4 {[%emt 0:00:15]} Ra2 {[%emt 0:00:07]} 33. b5 {[%emt 0:00:51]} Rxc2+ {[%emt 0:00:16]} 34. Kg3 {[%emt 0:00:12]} Kd7 {[%emt 0:00:12]} 35. a6 {[%emt 0:00:18]} Kc7 {[%emt 0:01:09]} 36. a7 {[%emt 0:00:15]} Kb7 {[%emt 0:00:08]} 37. Nd4 {[%emt 0:00:56]} Rc3+ {[%emt 0:00:10]} 38. Kg4 {[%emt 0:00:56]} Kxa7 {[%emt 0:00:08]} 39. Nc6+ {[%emt 0:00:45]} Kb6 {[%emt 0:00:09]} 40. Nd8 {[%emt 0:00:26]} Rc2 {[%emt 0:00:24]} 41. Kh3 {[%emt 0:00:13]} f6 {[%emt 0:00:11]} 42. Nc6 {[%emt 0:00:22]} Rc3+ {[%emt 0:00:12]} 43. g3 {[%emt 0:00:13]} Kxb5 {[%emt 0:00:07]} 44. Nd4+ {[%emt 0:00:31]} Kc5 {[%emt 0:02:38]} 45. Ne6+ {[%emt 0:00:18]} Kd5 {[%emt 0:00:25]} 46. Nf8 {[%emt 0:00:16]} Rc7 {[%emt 0:00:18]} 47. Kg4 {[%emt 0:00:16]} Rf7 {[%emt 0:00:07]} 48. Nxg6 {[%emt 0:00:19]} hxg6 {[%emt 0:00:05]} 49. h4 {[%emt 0:00:17]} Ke6 {[%emt 0:00:09]} 50. h5 {[%emt 0:01:10]} gxh5+ {[%emt 0:00:55]} 51. Kxh5 {[%emt 0:00:18]} Kf5 {[%emt 0:00:17]} 52. Kh6 {[%emt 0:00:23]} Ra7 {normal} 0-1

[Event "DVM U10 2019"]
[Site "Magedburg"]
[Date "2019.12.29"]
[Round "6"]
[White "Ermitsch, Magnus"]
[Black "Goldmann, David"]
[Result "1-0"]
[ECO "B83"]
[WhiteElo "1887"]
[BlackElo "1594"]
[Annotator "NA"]
[PlyCount "45"]
[EventDate "2019.12.27"]
[EventType "team-tourn"]
[EventRounds "7"]
[EventCountry "GER"]
[SourceTitle "playchess.com"]
[Source "ChessBase"]
[SourceQuality "1"]
[TimeControl "3300+5"]

{[%evp 11,32,25,48,18,40,19,4,0,39,22,40,11,11,8,31,8,79,26,69,22,40,-63,-38]} 1. e4 {[%emt 0:00:10]} c5 {[%emt 0:00:00]} 2. Nf3 {[%emt 0:00:37]} e6 {[%emt 0:00:00]} 3. d4 {[%emt 0:00:36]} cxd4 {[%emt 0:00:01]} 4. Nxd4 {[%emt 0:00:30]} Nc6 {[%emt 0:00:05]} 5. Nc3 {[%emt 0:00:36]} d6 {[%emt 0:00:03] unterminated} 6. Be3 {[%emt 0:00:58]} Nf6 {[%emt 0:00:07] unterminated} 7. Be2 {[%emt 0:00:55]} Be7 {[%emt 0:00:08]} 8. O-O {[%emt 0:00:51] unterminated} O-O {[%emt 0:00:28]} 9. f4 {[%emt 0:00:32]} Nxd4 {[%emt 0:00:16] unterminated} 10. Bxd4 {[%emt 0:01:43]} a6 {[%emt 0:00:25]} 11. Bf3 {[%emt 0:00:48] unterminated} Nd7 {[%emt 0:01:13] unterminated} 12. Qe1 {[%emt 0:06:01] unterminated} Qc7 {[%emt 0:01:27] unterminated} 13. Qg3 {[%emt 0:01:44] unterminated} f6 {[%emt 0:00:42] unterminated} (13... Bf6 $11 {keeps the balance.} 14. Bxf6 Nxf6) 14. Be3 {[%emt 0:03:24] unterminated} (14. Bg4 $16) 14... Kh8 {[%emt 0:03:02] unterminated} 15. Rad1 {[%emt 0:02:31] unterminated} Nb6 {[%emt 0:01:28] unterminated} 16. Qh3 {[%emt 0:08:11] unterminated} (16. Be2 $14) 16... Nc4 $15 {[%emt 0:00:33]} 17. Bc1 {[%emt 0:02:19]} Nxb2 {[%emt 0:00:13]} 18. Bxb2 {[%emt 0:05:58]} Qb6+ {[%emt 0:00:07]} 19. Kh1 {[%emt 0:00:40]} Qxb2 {[%emt 0:00:05]} 20. Bh5 {[%emt 0:01:32]} Kg8 {[%emt 0:02:28]} 21. f5 {[%emt 0:01:31]} exf5 {[%emt 0:01:05]} 22. exf5 {[%emt 0:01:27]} Qxc2 {[%emt 0:00:03]} 23. Nd5 {[%emt 0:03:44] normal} 1-0

[Event "DVM U10 2019"]
[Site "Magedburg"]
[Date "2019.12.29"]
[Round "6"]
[White "Haubold, Christian Lucas"]
[Black "Stettner, Oskar"]
[Result "1-0"]
[ECO "C50"]
[WhiteElo "1471"]
[BlackElo "1211"]
[Annotator "NA"]
[PlyCount "39"]
[EventDate "2019.12.27"]
[EventType "team-tourn"]
[EventRounds "7"]
[EventCountry "GER"]
[SourceTitle "playchess.com"]
[Source "ChessBase"]
[SourceQuality "1"]
[TimeControl "3300+5"]

1. e4 {[%emt 0:00:00]} e5 {[%emt 0:00:12]} 2. Nf3 {[%emt 0:00:05]} Nc6 {[%emt 0:00:21]} 3. Bc4 {[%emt 0:00:08]} Bc5 {[%emt 0:00:17]} 4. O-O {[%emt 0:00:15]} Nf6 {[%emt 0:01:01]} 5. d3 {[%emt 0:00:08]} d6 {[%emt 0:03:00]} 6. c3 {[%emt 0:00:46]} Bg4 {[%emt 0:01:18]} 7. h3 {[%emt 0:00:13]} Bh5 {[%emt 0:00:11]} 8. Bg5 {[%emt 0:00:39]} Qe7 {[%emt 0:02:59]} 9. Nbd2 {[%emt 0:00:28]} O-O-O {[%emt 0:01:31]} 10. b4 {[%emt 0:01:01]} Bb6 {[%emt 0:00:44]} 11. a4 {[%emt 0:00:24]} a6 {[%emt 0:01:58]} 12. a5 {[%emt 0:05:48]} Ba7 {[%emt 0:01:39]} 13. b5 {[%emt 0:01:08]} axb5 {[%emt 0:02:56]} 14. Bxb5 {[%emt 0:00:13]} Nb8 {[%emt 0:03:34]} 15. a6 {[%emt 0:03:35]} Nxa6 {[%emt 0:04:48]} 16. Bxa6 {[%emt 0:00:16]} bxa6 {[%emt 0:00:10]} 17. Rxa6 {[%emt 0:00:23]} Bb6 {[%emt 0:00:42]} 18. Qa4 {[%emt 0:00:36]} Kb7 {[%emt 0:02:42]} 19. Ra1 {[%emt 0:03:46]} Qe8 {[%emt 0:02:21]} 20. Qb4 {[%emt 0:06:07] normal} 1-0

[Event "DVM U10 2019"]
[Site "Magedburg"]
[Date "2019.12.29"]
[Round "6"]
[White "Zobel, Christian"]
[Black "Wartenberg, Alissa"]
[Result "0-1"]
[ECO "C45"]
[WhiteElo "1450"]
[BlackElo "1361"]
[Annotator "NA"]
[PlyCount "45"]
[EventDate "2019.12.27"]
[EventType "team-tourn"]
[EventRounds "7"]
[EventCountry "GER"]
[SourceTitle "playchess.com"]
[Source "ChessBase"]
[SourceQuality "1"]
[TimeControl "3300+5"]

1. e4 {[%emt 0:00:00]} e5 {[%emt 0:00:00]} 2. Nf3 {[%emt 0:00:00]} Nc6 {[%emt 0:00:06]} 3. d4 {[%emt 0:00:04]} exd4 {[%emt 0:00:04]} 4. Nxd4 {[%emt 0:00:05]} Bc5 {[%emt 0:00:12]} 5. Be3 {[%emt 0:00:44]} Qf6 {[%emt 0:00:09]} 6. c3 {[%emt 0:00:13]} Nge7 {[%emt 0:00:24]} 7. Be2 {[%emt 0:01:21]} d6 {[%emt 0:00:58]} 8. O-O {[%emt 0:00:47]} a6 {[%emt 0:01:38]} 9. Nxc6 {[%emt 0:01:48]} Nxc6 {[%emt 0:00:30]} 10. Bxc5 {[%emt 0:00:14]} dxc5 {[%emt 0:00:20]} 11. Nd2 {[%emt 0:03:27]} O-O {[%emt 0:00:41]} 12. Nb3 {[%emt 0:01:04]} Qe7 {[%emt 0:02:57]} 13. Qc2 {[%emt 0:02:51]} Re8 {[%emt 0:00:36]} 14. Rfe1 {[%emt 0:00:14]} Qxe4 {[%emt 0:05:42]} 15. Bd3 {[%emt 0:00:11]} Qxe1+ {[%emt 0:00:16]} 16. Rxe1 Rxe1+ {[%emt 0:00:07]} 17. Bf1 {[%emt 0:00:09]} b6 {[%emt 0:02:04]} 18. f3 {[%emt 0:00:58]} Bb7 {[%emt 0:02:45]} 19. Kf2 {[%emt 0:00:17]} Rae8 {[%emt 0:00:33]} 20. Nc1 {[%emt 0:04:24]} g6 {[%emt 0:02:56]} 21. Be2 {[%emt 0:00:12]} Rh1 {[%emt 0:03:23]} 22. h3 {[%emt 0:00:08]} Re6 {[%emt 0:04:45]} 23. Bf1 {[%emt 0:11:04] normal} 0-1

[Event "DVM U10 2019"]
[Site "Magedburg"]
[Date "2019.12.29"]
[Round "6"]
[White "Dorendorf, Mika"]
[Black "Ruddat, Jarne"]
[Result "1/2-1/2"]
[ECO "A48"]
[WhiteElo "1424"]
[BlackElo "1458"]
[Annotator "NA"]
[PlyCount "93"]
[EventDate "2019.12.27"]
[EventType "team-tourn"]
[EventRounds "7"]
[EventCountry "GER"]
[SourceTitle "playchess.com"]
[Source "ChessBase"]
[SourceQuality "1"]
[TimeControl "3300+5"]

1. Nf3 {[%emt 0:00:00]} Nf6 {[%emt 0:00:01]} 2. d4 {[%emt 0:00:01]} g6 {[%emt 0:00:14]} 3. c4 {[%emt 0:00:03]} Bg7 {[%emt 0:00:04]} 4. Nc3 {[%emt 0:00:05]} O-O {[%emt 0:00:18]} 5. e3 {[%emt 0:00:09]} d6 {[%emt 0:00:16]} 6. Be2 {[%emt 0:00:08]} Re8 {[%emt 0:00:48]} 7. O-O {[%emt 0:00:17]} Nbd7 {[%emt 0:03:00]} 8. e4 {[%emt 0:01:52]} e5 {[%emt 0:06:28]} 9. d5 {[%emt 0:00:13]} Nc5 {[%emt 0:00:24]} 10. Bg5 {[%emt 0:00:30]} h6 {[%emt 0:01:16]} 11. Bxf6 {[%emt 0:00:06]} Bxf6 {[%emt 0:00:26]} 12. Qc2 {[%emt 0:00:50]} Bg4 {[%emt 0:01:52]} 13. Na4 {[%emt 0:00:18]} b6 {[%emt 0:03:07]} 14. Nxc5 {[%emt 0:00:38]} bxc5 {[%emt 0:00:08]} 15. a3 {[%emt 0:00:23]} a5 {[%emt 0:01:25]} 16. Qd2 {[%emt 0:00:35]} Bxf3 {[%emt 0:00:27]} 17. Bxf3 {[%emt 0:00:16]} Bg7 {[%emt 0:00:16]} 18. Rfb1 {[%emt 0:00:20]} Qb8 {[%emt 0:00:40]} 19. h3 {[%emt 0:00:14]} Qb3 {[%emt 0:01:03]} 20. Be2 {[%emt 0:00:29]} Kh7 {[%emt 0:00:38]} 21. Qd3 {[%emt 0:00:20]} Reb8 {[%emt 0:00:21]} 22. Qxb3 {[%emt 0:03:01]} Rxb3 {[%emt 0:02:24]} 23. Ra2 {[%emt 0:00:32]} Bf6 {[%emt 0:00:09]} 24. a4 {[%emt 0:01:14]} Rab8 {[%emt 0:00:10]} 25. Bd1 {[%emt 0:00:24]} R3b4 {[%emt 0:00:09]} 26. b3 {[%emt 0:00:11]} Rxc4 {[%emt 0:00:11]} 27. Bc2 {[%emt 0:00:50]} Rcb4 {[%emt 0:00:23]} 28. Rab2 {[%emt 0:00:18]} c4 {[%emt 0:00:17]} 29. Kf1 {[%emt 0:00:16]} Bg5 {[%emt 0:00:21]} 30. Ke2 {[%emt 0:00:19]} Kg7 {[%emt 0:00:38]} 31. g3 {[%emt 0:00:26]} h5 {[%emt 0:00:15]} 32. h4 {[%emt 0:00:41]} Bh6 {[%emt 0:00:09]} 33. f3 {[%emt 0:00:44]} c3 {[%emt 0:00:24]} 34. Ra2 {[%emt 0:00:09]} Bd2 {[%emt 0:00:06]} 35. Raa1 {[%emt 0:00:33]} R8b6 {[%emt 0:01:43]} 36. Bd1 {[%emt 0:00:35]} c6 {[%emt 0:00:14]} 37. dxc6 {[%emt 0:00:43]} Rxc6 {[%emt 0:00:05]} 38. Bc2 {[%emt 0:00:12]} Kf6 {[%emt 0:00:23]} 39. Kf2 {[%emt 0:00:31]} g5 {[%emt 0:00:08]} 40. hxg5+ {[%emt 0:00:51]} Kxg5 {[%emt 0:00:08]} 41. Ke2 {[%emt 0:00:33]} Rc8 {[%emt 0:00:47]} 42. Rd1 {[%emt 0:00:54]} Rh8 {[%emt 0:01:22]} 43. Rg1 {[%emt 0:00:47]} Kf6 {[%emt 0:00:29]} 44. Rh1 {[%emt 0:00:24]} Ke6 {[%emt 0:00:32]} 45. Rh2 {[%emt 0:01:07]} Kf6 {[%emt 0:00:11]} 46. Rah1 {[%emt 0:00:16]} Kg5 {[%emt 0:00:13]} 47. Rg2 {[%emt 0:00:14] normal} 1/2-1/2

[Event "DVM U10 2019"]
[Site "Magedburg"]
[Date "2019.12.29"]
[Round "6"]
[White "Lu, Yunong Elias"]
[Black "Torosyan, Bagrat"]
[Result "0-1"]
[ECO "B92"]
[WhiteElo "1397"]
[BlackElo "1613"]
[Annotator "NA"]
[PlyCount "89"]
[EventDate "2019.12.27"]
[EventType "team-tourn"]
[EventRounds "7"]
[EventCountry "GER"]
[SourceTitle "playchess.com"]
[Source "ChessBase"]
[SourceQuality "1"]
[TimeControl "3300+5"]

1. e4 {[%emt 0:00:00]} c5 {[%emt 0:00:00]} 2. Nf3 {[%emt 0:00:33]} d6 {[%emt 0:00:04]} 3. d4 {[%emt 0:00:35]} cxd4 {[%emt 0:00:05]} 4. Nxd4 {[%emt 0:00:07]} Nf6 {[%emt 0:00:12]} 5. Nc3 {[%emt 0:00:43]} a6 {[%emt 0:00:09]} 6. Be2 {[%emt 0:00:54]} e5 {[%emt 0:00:09]} 7. Nb3 {[%emt 0:00:12]} Be6 {[%emt 0:00:05]} 8. Be3 {[%emt 0:00:19]} b5 {[%emt 0:00:22]} 9. Bd3 {[%emt 0:00:42]} Be7 {[%emt 0:00:33]} 10. O-O {[%emt 0:00:38]} O-O {[%emt 0:00:31]} 11. Re1 {[%emt 0:04:18]} Ng4 {[%emt 0:00:30]} 12. Bd2 {[%emt 0:00:59]} Qb6 {[%emt 0:00:16]} 13. Rf1 {[%emt 0:00:34]} Bh4 {[%emt 0:00:15]} 14. Be1 {[%emt 0:00:18]} Be7 {[%emt 0:02:27]} 15. Bd2 {[%emt 0:01:43]} b4 {[%emt 0:00:31]} 16. Ne2 {[%emt 0:00:52]} a5 {[%emt 0:00:21]} 17. h3 {[%emt 0:00:10]} Nf6 {[%emt 0:00:08]} 18. Be3 {[%emt 0:00:11]} Qb7 {[%emt 0:00:15]} 19. Ng3 {[%emt 0:00:27]} a4 {[%emt 0:00:51]} 20. Nd2 {[%emt 0:00:29]} Rc8 {[%emt 0:01:39]} 21. Nf3 {[%emt 0:00:28]} Nbd7 {[%emt 0:00:36]} 22. Qe2 {[%emt 0:00:31]} Nc5 {[%emt 0:03:03]} 23. Bd2 {[%emt 0:01:16]} b3 {[%emt 0:00:58]} 24. axb3 {[%emt 0:00:16]} Nxd3 {[%emt 0:01:06]} 25. Qxd3 {[%emt 0:00:36]} axb3 {[%emt 0:00:32]} 26. cxb3 {[%emt 0:00:33]} Rxa1 {[%emt 0:00:32]} 27. Rxa1 {[%emt 0:00:09]} Bxb3 {[%emt 0:00:24]} 28. Rc1 {[%emt 0:00:11]} Be6 {[%emt 0:01:02]} 29. Ng5 {[%emt 0:00:26]} Rxc1+ {[%emt 0:01:29]} 30. Bxc1 {[%emt 0:00:08]} Qc6 {[%emt 0:00:20]} 31. Be3 {[%emt 0:00:48]} Qc4 {[%emt 0:01:03]} 32. Qxc4 {[%emt 0:00:51]} Bxc4 {[%emt 0:00:08]} 33. Nf3 {[%emt 0:00:15]} g6 {[%emt 0:00:31]} 34. Nd2 {[%emt 0:02:34]} Bb5 {[%emt 0:00:13]} 35. f3 {[%emt 0:01:31]} d5 {[%emt 0:01:33]} 36. exd5 {[%emt 0:00:53]} Nxd5 {[%emt 0:00:07]} 37. Ba7 {[%emt 0:00:48]} f5 {[%emt 0:00:30]} 38. Bb8 {[%emt 0:01:26]} Bc5+ {[%emt 0:00:17]} 39. Kh2 {[%emt 0:00:33]} Bd4 {[%emt 0:00:11]} 40. b3 {[%emt 0:00:17]} Ne3 {[%emt 0:00:22]} 41. f4 {[%emt 0:01:46]} e4 {[%emt 0:00:10]} 42. Bd6 {[%emt 0:01:07]} Kf7 {[%emt 0:00:39]} 43. Bb4 {[%emt 0:00:09]} Ke6 {[%emt 0:00:40]} 44. Nb1 {[%emt 0:01:15]} Nd5 {[%emt 0:01:17]} 45. Be1 {[%emt 0:00:33] normal} 0-1

[Event "DVM U10 2019"]
[Site "Magedburg"]
[Date "2019.12.29"]
[Round "6"]
[White "Schlange, Jonathan"]
[Black "Sauer, Tim"]
[Result "0-1"]
[ECO "B13"]
[WhiteElo "1319"]
[BlackElo "1691"]
[Annotator "NA"]
[PlyCount "64"]
[EventDate "2019.12.27"]
[EventType "team-tourn"]
[EventRounds "7"]
[EventCountry "GER"]
[SourceTitle "playchess.com"]
[Source "ChessBase"]
[SourceQuality "1"]
[TimeControl "3300+5"]

1. e4 {[%emt 0:00:00]} c6 {[%emt 0:00:00]} 2. d4 {[%emt 0:00:12]} d5 {[%emt 0:00:04]} 3. exd5 {[%emt 0:00:09]} cxd5 {[%emt 0:00:08]} 4. Bd3 {[%emt 0:00:08]} Nc6 {[%emt 0:00:05]} 5. c3 {[%emt 0:00:21]} Nf6 {[%emt 0:00:06]} 6. h3 {[%emt 0:00:05]} g6 {[%emt 0:00:06]} 7. Bf4 {[%emt 0:00:07]} Bf5 {[%emt 0:00:12]} 8. Bxf5 {[%emt 0:00:07]} gxf5 {[%emt 0:00:03]} 9. Nf3 {[%emt 0:00:09]} e6 {[%emt 0:00:15]} 10. O-O {[%emt 0:00:12]} Bd6 {[%emt 0:00:35]} 11. Bg5 {[%emt 0:01:10]} Be7 {[%emt 0:01:25]} 12. Nbd2 {[%emt 0:00:42]} Ne4 {[%emt 0:00:13]} 13. Nxe4 {[%emt 0:00:09]} fxe4 {[%emt 0:00:52]} 14. Bxe7 {[%emt 0:00:36]} Qxe7 {[%emt 0:00:09]} 15. Ne5 {[%emt 0:00:32]} Rg8 {[%emt 0:01:56]} 16. Qh5 {[%emt 0:01:45]} Nxe5 {[%emt 0:03:16]} 17. Qxe5 {[%emt 0:00:18]} Qg5 {[%emt 0:07:41]} 18. Qxg5 {[%emt 0:01:24]} Rxg5 {[%emt 0:01:29]} 19. Kh2 {[%emt 0:00:12]} Ke7 {[%emt 0:00:14]} 20. f3 {[%emt 0:00:09]} Rag8 {[%emt 0:00:14]} 21. g4 {[%emt 0:00:35]} exf3 {[%emt 0:01:33]} 22. Rxf3 {[%emt 0:00:13]} h5 {[%emt 0:00:08]} 23. Raf1 {[%emt 0:00:06]} R8g7 {[%emt 0:00:17]} 24. gxh5 {[%emt 0:00:15]} Rg2+ {[%emt 0:01:12]} 25. Kh1 {[%emt 0:00:05]} Rxb2 {[%emt 0:01:02]} 26. R3f2 {[%emt 0:00:24]} Rb6 {[%emt 0:01:52]} 27. Kh2 {[%emt 0:02:45]} Ra6 {[%emt 0:07:13]} 28. Rg1 {[%emt 0:01:19]} Rh7 {[%emt 0:02:14]} 29. Rg5 {[%emt 0:01:58]} Ra3 {[%emt 0:00:36]} 30. Rc2 {[%emt 0:00:07]} Kf6 {[%emt 0:01:19]} 31. h4 {[%emt 0:00:24]} b5 {[%emt 0:02:31]} 32. Kg3 {[%emt 0:05:39]} b4 {[%emt 0:00:33] normal} 0-1